bitfinex-derivatives/quotes_ETHF0:USTF0_20250504
["timestamp","ask_amount","ask_price","bid_price","bid_amount"]
[1746328253488,1.09321,1829.2,1829.0,10.14808]
[1746328254092,1.09321,1829.2,1829.1,1.09326]
[1746328254692,1.09326,1829.1,1829.0,10.1481]
[1746328254888,1.09326,1829.1,1829.0,9.0548]
[1746328255089,1.09332,1829.0,1828.9,3.761]
[1746328255290,2.76072,1829.0,1828.9,4.85438]
[1746328255899,1.6674,1829.0,1828.9,4.85438]
[1746328256194,1.6674,1829.0,1828.9,4.78138]
[1746328256395,1.6674,1829.0,1828.9,10.18918]
[1746328258297,2.76072,1829.0,1828.9,10.18918]
[1746328258597,1.6674,1829.0,1828.9,10.18918]
[1746328258787,2.76072,1829.0,1828.9,10.18918]
[1746328259396,1.6674,1829.0,1828.9,10.18918]
[1746328260998,2.76072,1829.0,1828.9,10.18918]
[1746328262195,5.96852,1829.0,1828.9,3.688]
[1746328262399,7.61502,1829.0,1828.9,3.688]
[1746328262594,4.40722,1829.0,1828.9,3.688]
[1746328263090,4.40722,1829.0,1828.9,5.2677]
[1746328263292,4.40722,1829.0,1828.9,1.5797]
[1746328263902,8.00867199,1829.0,1828.9,1.5797]
[1746328264105,4.69477199,1829.0,1828.9,2.67308]
[1746328264401,4.69477199,1829.0,1828.9,1.5797]
[1746328265105,4.69477199,1829.0,1828.9,5.2677]
[1746328266301,1.09332,1829.0,1828.9,5.2677]
[1746328268104,2.74912,1829.0,1828.9,5.2677]
[1746328269602,3.59712,1829.0,1828.9,5.2677]
[1746328270101,3.59712,1829.0,1828.9,3.688]
[1746328270801,4.46812,1829.0,1828.9,3.688]
[1746328272103,8.06957199,1829.0,1828.9,3.688]
[1746328272707,11.27737199,1829.0,1828.9,3.688]
[1746328273304,1.0935,1828.7,1828.6,2.67135]
[1746328273496,1.0935,1828.7,1828.6,6.43335]
[1746328274303,1.09349,1828.8,1828.6,6.43335]
[1746328274504,1.6902,1828.7,1828.6,6.43335]
[1746328275004,2.7837,1828.7,1828.6,6.43335]
[1746328275509,1.6902,1828.7,1828.6,6.43335]
[1746328277303,11.83448787,1828.9,1828.7,1.09346]
[1746328277502,11.83448787,1828.9,1828.7,2.72827]
[1746328277806,11.83448787,1828.9,1828.8,1.09344]
[1746328278104,11.83448787,1828.9,1828.8,4.78144]
[1746328278601,1.09362,1828.5,1828.4,3.705]
[1746328278804,4.30142,1828.5,1828.4,3.705]
[1746328279197,1.09362,1828.5,1828.4,7.393]
[1746328279393,2.80672,1828.5,1828.4,7.393]
[1746328279595,1.7131,1828.5,1828.4,8.48668]
[1746328279803,3.60145199,1828.9,1828.4,15.6008]
[1746328279999,1.09346,1828.8,1828.7,1.0935]
[1746328280195,6.40797199,1828.9,1828.8,2.80504]
[1746328280401,6.40797199,1828.9,1828.8,1.7116]
[1746328280698,6.40797199,1828.9,1828.8,2.80504]
[1746328280900,3.60145199,1828.9,1828.8,2.80504]
[1746328281100,3.60145199,1828.9,1828.8,7.31334]
[1746328281607,4.69483199,1828.9,1828.8,7.31334]
[1746328281804,4.69483199,1828.9,1828.8,6.2199]
[1746328282405,4.69483199,1828.9,1828.8,5.3996]
[1746328282602,7.25623199,1828.9,1828.8,5.3996]
[1746328283308,6.40973199,1828.9,1828.8,6.49304]
[1746328283509,3.60145199,1828.9,1828.8,6.49304]
[1746328283814,4.69483199,1828.9,1828.8,6.49304]
[1746328284014,1.09338,1828.9,1828.8,5.3996]
[1746328284310,3.66596,1829.0,1828.8,6.49304]
[1746328284510,3.66596,1829.0,1828.9,1.6554]
[1746328284912,3.66596,1829.0,1828.9,2.74878]
[1746328285208,1.09336,1829.0,1828.9,5.3434]
[1746328286810,1.09336,1829.0,1828.9,6.43678]
[1746328287610,4.69481199,1829.0,1828.9,5.3434]
[1746328287809,6.39791199,1829.0,1828.9,5.3434]
[1746328288609,3.60145199,1829.0,1828.9,6.43678]
[1746328289407,3.60145199,1829.0,1828.9,13.10418]
[1746328291413,4.69461199,1829.3,1829.1,1.09323]
[1746328291611,6.38201199,1829.3,1829.2,5.3142]
[1746328292212,6.38201199,1829.3,1829.2,7.393]
[1746328292915,6.38201199,1829.3,1829.2,3.688]
[1746328292916,9.58981199,1829.3,1829.2,3.688]
[1746328293307,1.09321,1829.2,1829.1,3.704]
[1746328293507,4.46211,1829.2,1829.1,3.704]
[1746328295115,3.3689,1829.2,1828.9,1.09338]
[1746328295317,2.79876,1829.1,1829.0,3.704]
[1746328296115,2.79876,1829.1,1829.0,7.392]
[1746328297214,1.7055,1829.1,1829.0,8.48532]
[1746328297916,5.3039731,1829.1,1829.0,8.48532]
[1746328298113,3.5984731,1829.1,1829.0,8.48532]
[1746328298417,3.5984731,1829.1,1829.0,11.69312]
[1746328298616,3.5984731,1829.1,1829.0,13.30282]
[1746328302026,6.03557,1829.3,1829.2,1.09321]
[1746328302720,4.9424,1829.3,1829.1,2.80172]
[1746328303018,6.03558,1829.3,1829.1,1.7085]
[1746328303225,1.09326,1829.1,1829.0,7.392]
[1746328303423,0.7935,1829.2,1829.0,7.392]
[1746328303922,0.7935,1829.2,1829.1,1.09326]
[1746328304327,0.7935,1829.2,1829.1,6.51016]
[1746328304519,4.30099,1829.3,1829.2,1.09321]
[1746328304718,3.2078,1829.3,1829.2,2.80611]
[1746328304915,6.8062731,1829.3,1829.2,2.80611]
[1746328305119,6.8062731,1829.3,1829.2,6.49411]
[1746328305523,7.8994231,1829.3,1829.2,6.49411]
[1746328306323,6.8062731,1829.3,1829.2,6.49411]
[1746328306623,7.8994231,1829.3,1829.2,6.49411]
[1746328307823,6.8062731,1829.3,1829.2,6.49411]
[1746328309330,3.5984731,1829.3,1829.2,6.49411]
[1746328309533,1.88663,1829.4,1829.2,6.49411]
[1746328309830,1.88663,1829.4,1829.3,1.09315]
[1746328310135,1.88663,1829.4,1829.3,3.688]
[1746328311132,0.7935,1829.4,1829.3,4.78115]
[1746328311319,1.88659,1829.4,1829.3,4.78115]
[1746328311525,1.88659,1829.4,1829.3,3.688]
[1746328312132,1.88659,1829.4,1829.3,4.78115]
[1746328312733,1.88659,1829.4,1829.3,3.688]
[1746328316933,6.88659,1829.4,1829.3,3.688]
[1746328317131,6.88659,1829.4,1829.0,4.75229]
[1746328317132,6.0986731,1829.4,1829.0,4.75229]
[1746328317329,1.09326,1829.1,1829.0,3.659]
[1746328317528,1.09326,1829.1,1829.0,4.75232]
[1746328317730,4.43936,1829.1,1829.0,4.75232]
[1746328318236,4.43936,1829.1,1829.0,8.44032]
[1746328318938,7.64716,1829.1,1829.0,8.44032]
[1746328319427,4.43936,1829.1,1829.0,8.44032]
[1746328319839,4.43936,1829.1,1829.0,3.688]
[1746328320033,4.43936,1829.1,1829.0,7.348]
[1746328321539,4.43936,1829.1,1829.0,8.44132]
[1746328321940,4.43936,1829.1,1829.0,7.348]
[1746328323136,7.64716,1829.1,1829.0,3.688]
[1746328323336,12.64716,1829.1,1829.0,2.53874]
[1746328324338,12.64716,1829.1,1828.6,5.3765]
[1746328324339,1.0935,1828.7,1828.6,3.66]
[1746328324541,1.0935,1828.7,1828.4,4.0485]
[1746328324731,2.4772,1828.6,1828.5,3.66]
[1746328324933,2.4772,1828.6,1828.4,5.7247]
[1746328325242,2.4772,1828.6,1828.5,7.348]
[1746328325442,3.57076,1828.6,1828.5,3.688]
[1746328325738,2.4772,1828.6,1828.5,7.348]
[1746328325937,2.4772,1828.6,1828.5,8.44162]
[1746328326143,2.4772,1828.6,1828.5,9.0242]
[1746328326945,3.57076,1828.6,1828.5,9.0242]
[1746328327137,2.4772,1828.6,1828.5,9.0242]
[1746328327742,2.4772,1828.6,1828.5,10.11782]
[1746328328044,2.4772,1828.6,1828.5,9.0242]
[1746328328242,2.4772,1828.6,1828.5,10.11782]
[1746328328445,3.5984731,1828.7,1828.6,1.09356]
[1746328328743,3.5984731,1828.7,1828.6,2.69846]
[1746328329042,3.5984731,1828.7,1828.6,8.48896]
[1746328329242,3.5984731,1828.7,1828.6,11.69676]
[1746328330646,7.20303031,1829.0,1828.7,1.0935]
[1746328330838,7.20303031,1829.0,1828.9,1.09338]
[1746328331333,7.20303031,1829.0,1828.9,7.34498]
[1746328333636,2.4718,1829.3,1829.2,1.09321]
[1746328333835,2.4718,1829.3,1829.2,4.75321]
[1746328334242,2.4718,1829.3,1829.2,8.44121]
[1746328338353,3.56495,1829.3,1829.2,7.348]
[1746328339149,3.56495,1829.3,1829.2,8.44121]
[1746328340450,3.56495,1829.3,1829.2,7.348]
[1746328342251,3.56495,1829.3,1829.2,8.44121]
[1746328342450,2.4718,1829.3,1829.2,8.44121]
[1746328342853,3.56495,1829.3,1829.2,8.44121]
[1746328343254,2.4718,1829.3,1829.2,8.44121]
[1746328343556,3.56495,1829.3,1829.2,8.44121]
[1746328343755,2.4718,1829.3,1829.2,8.44121]
[1746328344350,0.805,1829.5,1829.4,1.09309]
[1746328344551,2.526,1829.5,1829.4,1.09309]
[1746328344858,3.61903,1829.5,1829.4,1.09309]
[1746328345157,3.61903,1829.5,1829.4,3.688]
[1746328348957,3.61903,1829.5,1829.4,4.78109]
[1746328349358,2.526,1829.5,1829.4,4.78109]
[1746328350462,4.0444,1829.6,1829.5,1.09303]
[1746328350759,5.13737,1829.6,1829.5,6.45903]
[1746328351159,5.13737,1829.6,1829.5,10.14703]
[1746328351465,6.72357,1829.6,1829.5,10.14703]
[1746328352162,6.72357,1829.6,1829.5,9.054]
[1746328352359,6.72357,1829.6,1829.5,7.315]
[1746328352754,6.72357,1829.6,1829.5,3.688]
[1746328358573,7.4205738,1829.6,1829.5,3.688]
[1746328361567,6.72357,1829.6,1829.5,3.688]
[1746328365171,3.51577,1829.6,1829.5,3.688]
[1746328365364,3.51577,1829.6,1829.5,4.78103]
[1746328365567,3.51577,1829.6,1829.5,6.39333]
[1746328366061,7.20303031,1829.9,1829.8,1.09285]
[1746328366268,7.20303031,1829.9,1829.8,7.92765]
[1746328367273,7.20303031,1829.9,1829.8,11.61565]
[1746328370167,7.20303031,1829.9,1829.8,4.78085]
[1746328370477,3.57489,1829.9,1829.8,7.311]
[1746328371876,3.57489,1829.9,1829.8,8.40385]
[1746328372275,2.4821,1829.9,1829.8,8.40385]
[1746328372973,3.2078,1830.0,1829.9,1.09279]
[1746328373178,2.77914,1830.2,1830.0,1.09268]
[1746328373477,2.77914,1830.2,1830.1,3.623]
[1746328374176,9.98217031,1830.2,1830.1,3.623]
[1746328374475,11.62747031,1830.2,1830.1,3.623]
[1746328377083,11.62744031,1830.2,1830.1,3.623]
[1746328377785,4.42441,1830.2,1830.1,3.623]
[1746328378285,4.42441,1830.2,1830.1,4.71567]
[1746328378985,4.42441,1830.2,1830.1,3.623]
[1746328379985,4.42441,1830.2,1830.1,4.71567]
[1746328381585,3.3318,1830.2,1830.1,4.71567]
[1746328381989,3.3318,1830.2,1830.1,6.33027]
[1746328382888,4.42441,1830.2,1830.1,6.33027]
[1746328383888,3.3318,1830.2,1830.1,6.33027]
[1746328384387,4.30038,1830.3,1830.2,1.09261]
[1746328385088,5.90788,1830.3,1830.2,4.78061]
[1746328385686,4.8153,1830.3,1830.2,4.78061]
[1746328386084,4.8153,1830.3,1830.2,6.39761]
[1746328386588,5.90785,1830.3,1830.2,6.39761]
[1746328386781,4.8153,1830.3,1830.2,6.39761]
[1746328388193,4.9302,1830.5,1830.4,1.09249]
[1746328388394,5.7238,1830.5,1830.4,4.71449]
[1746328388991,6.81623,1830.5,1830.4,4.71449]
[1746328389195,5.7238,1830.5,1830.4,10.14489]
[1746328389790,5.7238,1830.5,1830.4,8.40249]
[1746328390385,5.7238,1830.5,1830.4,10.14489]
[1746328391393,4.9302,1830.5,1830.4,10.14489]
[1746328391593,0.862,1830.6,1830.5,1.09243]
[1746328391793,11.22583031,1830.7,1830.6,1.09237]
[1746328391794,12.85723031,1830.7,1830.6,1.09237]
[1746328392689,12.85723031,1830.7,1830.6,2.82587]
[1746328392892,13.94954031,1830.7,1830.6,1.09237]
[1746328393392,13.94954031,1830.7,1830.5,4.78038]
[1746328393594,1.6314,1830.6,1830.5,4.78038]
[1746328394095,1.6314,1830.6,1830.5,8.40238]
[1746328396096,2.72377,1830.6,1830.5,8.40238]
[1746328396286,1.6314,1830.6,1830.5,8.40238]
[1746328399791,4.0228,1830.7,1830.6,1.09237]
[1746328399997,4.0228,1830.7,1830.6,2.67487]
[1746328400496,5.6503,1830.7,1830.6,2.67487]
[1746328401396,5.6503,1830.7,1830.6,1.09237]
[1746328401789,5.6503,1830.7,1830.5,3.688]
[1746328401994,2.76167,1830.6,1830.5,3.688]
[1746328402192,1.09243,1830.5,1830.4,3.587]
[1746328402395,6.83853,1830.5,1830.4,3.587]
[1746328402593,3.63073,1830.5,1830.4,3.587]
[1746328402793,3.63073,1830.5,1830.4,4.67949]
[1746328403000,2.5383,1830.5,1830.4,4.67949]
[1746328403199,2.5383,1830.5,1830.4,8.36749]
[1746328404293,3.63073,1830.5,1830.4,8.36749]
[1746328404496,2.5383,1830.5,1830.4,8.36749]
[1746328405301,2.5383,1830.5,1830.4,9.96239]
[1746328405894,3.63073,1830.5,1830.4,7.275]
[1746328406298,3.63073,1830.5,1830.4,8.36749]
[1746328407002,2.5383,1830.5,1830.4,8.36749]
[1746328407394,3.63073,1830.5,1830.4,8.36749]
[1746328408695,3.63073,1830.5,1830.4,7.275]
[1746328408903,2.5383,1830.5,1830.4,8.36749]
[1746328409402,3.63073,1830.5,1830.4,8.36749]
[1746328410106,2.5383,1830.5,1830.4,8.36749]
[1746328410791,2.5383,1830.5,1830.4,10.10669]
[1746328411196,3.63073,1830.5,1830.4,10.10669]
[1746328411392,2.5383,1830.5,1830.4,10.10669]
[1746328412201,3.63073,1830.5,1830.4,5.4272]
[1746328412402,3.63073,1830.5,1830.4,7.275]
[1746328414611,3.63073,1830.5,1830.4,8.36749]
[1746328416606,3.63073,1830.5,1830.4,7.275]
[1746328417809,3.63073,1830.5,1830.4,8.36749]
[1746328418102,3.63073,1830.5,1830.4,7.275]
[1746328419801,3.63073,1830.5,1830.4,8.36749]
[1746328420008,2.5383,1830.5,1830.4,8.36749]
[1746328420306,3.63073,1830.5,1830.4,8.36749]
[1746328421508,4.32733397,1830.5,1830.4,8.36749]
[1746328423708,4.32733397,1830.5,1830.4,3.688]
[1746328424008,7.53513397,1830.5,1830.4,3.688]
[1746328424207,1.09255,1830.3,1830.2,3.587]
[1746328424707,1.09255,1830.3,1830.2,4.67961]
[1746328424909,2.81295,1830.3,1830.2,6.39261]
[1746328425110,2.81295,1830.3,1830.2,10.08061]
[1746328425715,2.81295,1830.3,1830.2,7.275]
[1746328429419,8.89256188,1830.3,1830.2,7.275]
[1746328431318,8.89256188,1830.3,1830.2,8.36761]
[1746328431522,8.89256188,1830.3,1830.2,9.95831]
[1746328431825,8.89256188,1830.3,1830.2,8.8657]
[1746328433820,8.89256188,1830.3,1830.2,9.95831]
[1746328434125,8.89256188,1830.3,1830.2,8.8657]
[1746328434323,8.89256188,1830.3,1830.2,9.95831]
[1746328434926,8.89256188,1830.3,1830.2,8.8657]
[1746328438926,8.89256188,1830.3,1830.2,3.688]
[1746328439431,8.89256188,1830.3,1830.0,3.584]
[1746328439432,1.09267,1830.1,1830.0,3.584]
[1746328440017,4.36207,1830.1,1830.0,3.584]
[1746328440223,4.36207,1830.1,1830.0,7.272]
[1746328441130,4.36207,1830.1,1830.0,3.688]
[1746328441328,4.36207,1830.1,1830.0,7.272]
[1746328441826,4.36207,1830.1,1830.0,3.688]
[1746328442025,1.09297,1829.6,1829.5,10.88625528]
[1746328442218,1.09297,1829.6,1829.5,12.60925528]
[1746328442423,1.09297,1829.6,1829.5,10.88625528]
[1746328442625,3.61767,1829.6,1829.5,10.88625528]
[1746328443227,3.61767,1829.6,1829.5,14.57425528]
[1746328443532,3.61767,1829.6,1829.5,10.99025528]
[1746328444426,8.61767,1829.6,1829.5,3.688]
[1746328445131,1.09315,1829.3,1829.2,5.73176528]
[1746328445730,2.73175,1829.3,1829.2,5.73176528]
[1746328450031,1.09326,1829.1,1829.0,6.0633]
[1746328450238,1.09326,1829.1,1829.0,9.7513]
[1746328450735,2.66826,1829.1,1829.0,8.9027]
[1746328451539,1.90154,1829.2,1829.0,9.99602]
[1746328451733,1.90154,1829.2,1829.1,1.6249]
[1746328455335,1.09326,1829.1,1829.0,7.272]
[1746328455530,1.09326,1829.1,1829.0,8.9508]
[1746328457435,1.09326,1829.1,1829.0,10.04412]
[1746328458141,1.09326,1829.1,1829.0,8.9508]
[1746328458334,1.09326,1829.1,1829.0,10.04412]
[1746328458536,1.09326,1829.1,1829.0,8.9508]
[1746328461441,2.73756,1829.1,1829.0,8.9508]
[1746328461642,3.56956,1829.1,1829.0,8.9508]
[1746328463344,3.56956,1829.1,1829.0,10.04412]
[1746328464537,3.56956,1829.1,1829.0,8.9508]
[1746328465841,3.56956,1829.1,1829.0,3.688]
[1746328469444,4.30101,1829.2,1829.1,1.09326]
[1746328469643,4.30101,1829.2,1829.1,4.48946]
[1746328470240,4.30101,1829.2,1829.1,3.3962]
[1746328470645,4.30101,1829.2,1829.1,4.48946]
[1746328470836,3.2078,1829.2,1829.1,4.48946]
[1746328471042,1.09305,1829.5,1829.3,1.09313]
[1746328471241,3.57560505,1829.6,1829.3,7.272]
[1746328471543,3.57560505,1829.6,1829.5,1.09303]
[1746328471948,3.57560505,1829.6,1829.5,9.30083]
[1746328472247,3.57560505,1829.6,1829.5,12.98883]
[1746328473048,0.68900572,1829.7,1829.6,1.09297]
[1746328473249,7.20303031,1829.8,1829.7,1.09291]
[1746328473448,7.20303031,1829.8,1829.7,7.17678]
[1746328473646,7.20303031,1829.8,1829.7,12.17678]
[1746328473839,3.54931031,1829.8,1829.7,12.17678]
[1746328474039,3.54931031,1829.8,1829.7,15.86478]
[1746328474553,1.09261,1830.2,1830.0,1.09271]
[1746328474848,1.09261,1830.2,1830.0,4.30051]
[1746328475044,1.09261,1830.2,1830.0,7.88451]
[1746328475251,1.09261,1830.2,1830.0,11.57251]
[1746328475447,1.6155,1830.3,1830.0,10.4798]
[1746328475643,1.09267,1830.1,1830.0,7.272]
[1746328476356,1.09265,1830.2,1830.0,7.272]
[1746328476550,2.70817,1830.1,1830.0,7.272]
[1746328476751,1.6155,1830.1,1830.0,7.272]
[1746328476949,2.70817,1830.1,1830.0,7.272]
[1746328477849,2.70817,1830.1,1830.0,3.688]
[1746328478246,4.34247,1830.1,1830.0,3.688]
[1746328478743,9.34247,1830.1,1830.0,3.688]
[1746328479356,1.09279,1829.9,1829.8,3.583]
[1746328480254,1.09279,1829.9,1829.8,7.271]
[1746328483453,1.09277,1830.0,1829.8,8.36385]
[1746328483653,2.81317,1830.0,1829.8,8.36385]
[1746328484357,1.09279,1829.9,1829.8,8.36385]
[1746328484956,1.7204,1830.0,1829.8,8.36385]
[1746328484957,2.81318,1830.0,1829.8,8.36385]
[1746328485158,1.09279,1829.9,1829.8,7.271]
[1746328485457,2.81319,1829.9,1829.8,7.271]
[1746328485650,2.81319,1829.9,1829.8,3.688]
[1746328487354,7.81319,1829.9,1829.8,3.688]
[1746328487554,2.81319,1829.9,1829.8,3.688]
[1746328490761,1.7204,1829.9,1829.8,4.78085]
[1746328491555,2.81319,1829.9,1829.8,4.78085]
[1746328492257,2.81319,1829.9,1829.8,3.688]
[1746328492760,2.81319,1829.9,1829.8,4.78085]
[1746328493355,1.7204,1829.9,1829.8,4.78085]
[1746328493661,1.91989,1830.1,1830.0,1.09273]
[1746328493859,1.91989,1830.1,1830.0,4.67373]
[1746328494158,1.91989,1830.1,1830.0,8.36173]
[1746328495863,0.8272,1830.1,1830.0,8.36173]
[1746328496261,1.91987,1830.1,1830.0,8.36173]
[1746328497261,0.8272,1830.1,1830.0,8.36173]
[1746328497963,3.59829,1830.3,1830.1,1.09264]
[1746328498163,3.59829,1830.3,1830.1,2.77714]
[1746328498366,1.09261,1830.2,1830.1,2.77714]
[1746328498660,2.80091,1830.2,1830.1,2.77714]
[1746328498865,1.09267,1830.1,1830.0,7.269]
[1746328499064,2.80097,1830.1,1830.0,7.269]
[1746328499362,3.62967,1830.1,1830.0,7.269]
[1746328499763,3.62967,1830.1,1830.0,3.688]
[1746328503463,3.62967,1830.1,1830.0,2.45158]
[1746328503667,1.09297,1829.6,1829.5,3.581]
[1746328504172,1.09297,1829.6,1829.5,7.269]
[1746328504461,3.2593,1829.7,1829.5,7.269]
[1746328504667,1.09283,1829.9,1829.6,1.6251]
[1746328504855,1.09283,1829.9,1829.7,1.09288]
[1746328505058,2.80223,1829.9,1829.8,3.581]
[1746328505255,2.80223,1829.9,1829.8,5.2061]
[1746328506167,2.80223,1829.9,1829.8,8.8941]
[1746328508069,3.65303,1829.9,1829.8,8.8941]
[1746328515674,3.65303,1829.9,1829.8,7.269]
[1746328518370,5.08783,1830.0,1829.8,7.269]
[1746328518577,1.88003,1830.0,1829.9,1.6928]
[1746328518773,1.88003,1830.0,1829.9,2.78559]
[1746328519176,1.88003,1830.0,1829.9,6.47359]
[1746328519376,3.57193,1830.0,1829.9,5.3808]
[1746328521276,3.57193,1830.0,1829.9,6.47359]
[1746328521277,0.7873,1830.0,1829.9,6.47359]
[1746328521477,1.88003,1830.0,1829.9,6.47359]
[1746328522078,1.88003,1830.0,1829.9,5.3808]
[1746328522378,3.57193,1830.0,1829.9,5.3808]
[1746328522775,2.4792,1830.0,1829.9,6.47359]
[1746328523270,0.7873,1830.0,1829.9,6.47359]
[1746328525779,1.88003,1830.0,1829.9,6.47359]
[1746328529176,0.7873,1830.0,1829.9,6.47359]
[1746328529374,1.09271,1830.1,1830.0,1.09273]
[1746328529576,1.09271,1830.1,1830.0,2.82693]
[1746328530080,8.25890964,1830.3,1830.1,1.09267]
[1746328530377,8.25888964,1830.3,1830.2,6.40581]
[1746328530579,8.25888964,1830.3,1830.2,5.3132]
[1746328530779,9.83278964,1830.3,1830.2,6.40581]
[1746328531180,9.83278964,1830.3,1830.2,10.09381]
[1746328531782,8.74023964,1830.3,1830.2,10.09381]
[1746328532083,7.16633964,1830.3,1830.2,10.09381]
[1746328532581,0.69670614,1830.3,1830.2,10.78231]
[1746328533482,0.69670614,1830.3,1830.2,11.09721]
[1746328535086,1.78925614,1830.3,1830.2,8.35961]
[1746328535777,2.79166,1830.5,1830.2,7.267]
[1746328535983,4.50336,1830.5,1830.3,2.7056]
[1746328536182,1.7117,1830.4,1830.3,2.7056]
[1746328536977,2.80419,1830.4,1830.3,2.7056]
[1746328537181,2.80419,1830.4,1830.3,6.3936]
[1746328537578,1.7117,1830.4,1830.3,6.3936]
[1746328540080,2.80419,1830.4,1830.3,6.3936]
[1746328540587,2.80419,1830.4,1830.3,7.267]
[1746328540790,6.01199,1830.4,1830.3,7.267]
[1746328540992,6.01199,1830.4,1830.3,3.688]
[1746328541290,6.01199,1830.4,1830.3,7.266]
[1746328543693,6.70869218,1830.4,1830.3,7.266]
[1746328544894,5.61620218,1830.4,1830.3,7.266]
[1746328545194,3.90450218,1830.4,1830.3,8.35855]
[1746328545883,0.69670218,1830.4,1830.3,10.00395]
[1746328546883,6.22452767,1830.5,1830.4,1.09249]
[1746328546884,0.8284,1830.5,1830.4,1.09249]
[1746328547083,0.8284,1830.5,1830.4,6.35149]
[1746328550597,6.48841767,1830.8,1830.6,1.09233]
[1746328550795,0.7959,1830.7,1830.6,4.67033]
[1746328550996,2.4964,1830.7,1830.6,4.67033]
[1746328551696,3.58871,1830.7,1830.6,4.67033]
[1746328552097,2.4964,1830.7,1830.6,4.67033]
[1746328552998,3.58871,1830.7,1830.6,4.67033]
[1746328553198,2.4964,1830.7,1830.6,4.67033]
[1746328553997,2.4964,1830.7,1830.6,6.29333]
[1746328556601,0.7959,1830.7,1830.6,6.29333]
[1746328557098,5.39612767,1831.0,1830.9,1.09219]
[1746328557301,5.39612767,1831.0,1830.9,7.87499]
[1746328557502,5.39612767,1831.0,1830.9,12.87499]
[1746328557998,2.94454768,1831.0,1830.9,14.60839]
[1746328558199,2.94454768,1831.0,1830.9,18.29639]
[1746328559702,16.81834198,1831.5,1830.9,18.29639]
[1746328559703,13.15068964,1831.5,1830.9,19.93464]
[1746328559902,2.69234,1831.4,1831.2,1.09201]
[1746328560104,2.4388,1831.3,1831.2,4.78001]
[1746328560402,2.4388,1831.3,1831.2,8.35501]
[1746328561000,3.53075,1831.3,1831.2,3.688]
[1746328561201,6.73855,1831.3,1831.2,7.263]
[1746328561601,6.73855,1831.3,1831.2,3.688]
[1746328561794,11.73855,1831.3,1831.2,2.3813]
[1746328562204,1.09207,1831.1,1831.0,3.575]
[1746328562704,4.29987,1831.1,1831.0,3.575]
[1746328563098,4.29987,1831.1,1831.0,7.263]
[1746328568105,5.08467,1831.1,1831.0,7.263]
[1746328569005,0.7848,1831.1,1831.0,8.35513]
[1746328569201,1.7157,1831.2,1831.1,1.09207]
[1746328569507,1.6363,1831.4,1831.3,1.09195]
[1746328569706,10.37413964,1831.5,1831.4,1.09189]
[1746328569905,12.01043964,1831.5,1831.4,2.72629]
[1746328570209,12.01043964,1831.5,1831.4,6.41429]
[1746328570506,13.10226964,1831.5,1831.4,6.41429]
[1746328570702,13.10226964,1831.5,1831.4,5.3224]
[1746328571105,12.01043964,1831.5,1831.4,6.41429]
[1746328571814,13.10226964,1831.5,1831.4,6.41429]
[1746328572306,12.01043964,1831.5,1831.4,6.41429]
[1746328572812,4.8441,1831.5,1831.4,6.41429]
[1746328573609,5.93593,1831.5,1831.4,6.41429]
[1746328573813,4.8441,1831.5,1831.4,6.41429]
[1746328575609,5.93593,1831.5,1831.4,6.41429]
[1746328575810,2.72813,1831.5,1831.4,6.41429]
[1746328575998,1.6363,1831.5,1831.4,6.41429]
[1746328576512,1.6633,1831.6,1831.5,1.09183]
[1746328576809,3.3858,1831.6,1831.5,2.72663]
[1746328577110,3.3858,1831.6,1831.5,6.41463]
[1746328579313,2.5358,1831.6,1831.5,6.41463]
[1746328579517,1.92429,1831.8,1831.5,5.3228]
[1746328579712,4.44679,1831.8,1831.6,5.3121]
[1746328579912,4.44679,1831.8,1831.7,1.09171]
[1746328580112,4.44679,1831.8,1831.6,6.40383]
[1746328580308,1.7189,1831.7,1831.6,6.40383]
[1746328584010,1.6362,1831.8,1831.7,1.09171]
[1746328584210,1.6362,1831.8,1831.7,6.35611]
[1746328585318,3.2078,1831.9,1831.8,1.09165]
[1746328585519,3.2078,1831.9,1831.8,2.66805]
[1746328585913,4.8159,1831.9,1831.8,2.66805]
[1746328586315,1.6081,1831.9,1831.8,6.35605]
[1746328586819,2.69969,1831.9,1831.8,6.35605]
[1746328587021,2.69969,1831.9,1831.8,3.688]
[1746328587219,2.69969,1831.9,1831.8,4.77965]
[1746328589326,1.6081,1831.9,1831.8,4.77965]
[1746328589718,2.69969,1831.9,1831.8,4.77965]
[1746328589926,2.69969,1831.9,1831.8,3.688]
[1746328590527,2.69969,1831.9,1831.8,4.77965]
[1746328590920,1.6081,1831.9,1831.8,4.77965]
[1746328591629,0.7912,1832.0,1831.9,1.09159]
[1746328591823,1.88273,1832.0,1831.9,6.26109]
[1746328592021,3.56073,1832.0,1831.9,6.26109]
[1746328592321,3.56073,1832.0,1831.9,9.94909]
[1746328592622,3.56073,1832.0,1831.9,8.8575]
[1746328592815,3.56073,1832.0,1831.9,7.259]
[1746328597626,3.56073,1832.0,1831.9,3.688]
[1746328598228,1.09164,1831.9,1831.7,4.6627]
[1746328598433,2.67344,1831.9,1831.7,4.6627]
[1746328598728,0.7906,1831.8,1831.7,4.6627]
[1746328598928,2.4481,1831.8,1831.7,4.6627]
[1746328599128,2.4481,1831.8,1831.7,8.3507]
[1746328600727,2.4481,1831.8,1831.7,9.9332]
[1746328603227,3.53975,1831.8,1831.7,9.9332]
[1746328603432,2.4481,1831.8,1831.7,9.9332]